bitfinex/quotes_BTCUSD_20251212
["timestamp","ask_amount","ask_price","bid_price","bid_amount"]
[1765561238815,0.00859513,90304.0,90303.0,0.001]
[1765561239023,0.00185151,90304.0,90303.0,0.001]
[1765561239500,0.00185151,90304.0,90301.0,0.01107407]
[1765561240167,0.00285151,90304.0,90301.0,0.01107407]
[1765561240374,0.00250151,90304.0,90301.0,0.01107407]
[1765561240502,0.22147658,90303.0,90298.0,0.01107444]
[1765561240707,0.01107395,90302.0,90298.0,0.01107444]
[1765561241057,0.01257521,90304.0,90300.0,0.01107419]
[1765561241460,0.01107382,90303.0,90300.0,0.01107419]
[1765561241676,0.01107395,90302.0,90298.0,0.01107444]
[1765561241905,0.2325612,90299.0,90296.0,0.0176]
[1765561242017,0.22150916,90290.0,90281.0,0.23260691]
[1765561242217,0.22150916,90290.0,90289.0,0.024235]
[1765561242422,0.22150916,90290.0,90289.0,0.006635]
[1765561242745,0.22151583,90287.0,90286.0,0.0176]
[1765561243151,0.22151579,90288.0,90286.0,0.0176]
[1765561243602,0.01107603,90285.0,90280.0,0.01107665]
[1765561243740,0.01107603,90285.0,90214.0,0.147]
[1765561243741,0.23260582,90282.0,90281.0,0.0176]
[1765561243938,0.23260582,90282.0,90281.0,0.02612974]
[1765561244194,0.22153546,90279.0,90278.0,0.0176]
[1765561244558,0.25218546,90279.0,90278.0,0.0176]
[1765561244783,0.25218546,90279.0,90262.0,0.01107885]
[1765561244784,0.01107849,90265.0,90262.0,0.01107885]
[1765561244984,0.01107824,90267.0,90264.0,0.01107861]
[1765561245145,0.01107763,90272.0,90263.0,0.0176]
[1765561245347,0.04544,90278.0,90263.0,0.0176]
[1765561245348,0.23261775,90277.0,90271.0,0.01107775]
[1765561245591,0.01107726,90275.0,90272.0,0.01107763]
[1765561246193,0.23262225,90276.0,90272.0,0.01107763]
[1765561246501,0.01107726,90275.0,90271.0,0.01107775]
[1765561246647,0.23262496,90275.0,90272.0,0.02548033]
[1765561246872,0.01107824,90267.0,90263.0,0.02867873]
[1765561247061,0.23263815,90269.0,90264.0,0.23265088]
[1765561247257,0.01107812,90268.0,90264.0,0.23265088]
[1765561247463,0.01107824,90267.0,90263.0,0.0176]
[1765561247697,0.2326478,90266.0,90263.0,0.0176]
[1765561248121,0.01107836,90266.0,90263.0,0.0176]
[1765561248321,0.23264612,90266.0,90263.0,0.0176]
[1765561248549,0.01107836,90266.0,90263.0,0.02867873]
[1765561249776,0.01107836,90266.0,90263.0,0.0176]
[1765561250133,0.01107836,90266.0,90261.0,0.01107898]
[1765561250333,0.01107836,90266.0,90264.0,0.0176]
[1765561250536,0.01107824,90267.0,90264.0,0.0176]
[1765561250766,0.23264528,90267.0,90264.0,0.0176]
[1765561250900,0.01107824,90267.0,90264.0,0.0176]
[1765561251331,0.22156982,90265.0,90264.0,0.0176]
[1765561251912,0.01107885,90262.0,90259.0,0.02867922]
[1765561252137,0.01107885,90262.0,90260.0,0.0201]
[1765561252642,0.01107836,90266.0,90261.0,0.23265862]
[1765561252847,0.01107836,90266.0,90262.0,0.01107885]
[1765561253209,0.02383868,90288.0,90249.0,0.0201]
[1765561253210,0.01108008,90252.0,90249.0,0.0201]
[1765561253394,0.01108008,90252.0,90250.0,0.0176]
[1765561253603,0.22161892,90245.0,90244.0,0.01983]
[1765561253820,0.23269618,90247.0,90244.0,0.03743]
[1765561254096,0.22161892,90245.0,90244.0,0.03743]
[1765561254299,0.02062555,90245.0,90244.0,0.0176]
[1765561254731,0.24224447,90245.0,90244.0,0.0196]
[1765561255149,0.22170447,90245.0,90244.0,0.0196]
[1765561255558,8.555e-05,90245.0,90244.0,0.0196]
[1765561255946,8.555e-05,90245.0,90244.0,0.0186]
[1765561256333,8.555e-05,90245.0,90244.0,0.0196]
[1765561256989,8.555e-05,90245.0,90244.0,0.09224]
[1765561257351,8.555e-05,90245.0,90244.0,0.002]
[1765561257554,8.555e-05,90245.0,90244.0,0.0196]
[1765561257775,8.555e-05,90245.0,90244.0,0.31386138]
[1765561259564,8.555e-05,90245.0,90244.0,0.04959]
[1765561259907,8.555e-05,90245.0,90244.0,0.0196]
[1765561260053,0.22170447,90245.0,90244.0,0.0196]
[1765561260804,0.24931447,90245.0,90244.0,0.0196]
[1765561261075,0.24191447,90245.0,90244.0,0.0196]
[1765561261275,0.24191447,90245.0,90244.0,0.0176]
[1765561261530,0.01108205,90236.0,90232.0,0.01108254]
[1765561261721,0.01108241,90233.0,90230.0,0.02091]
[1765561261881,0.01108389,90221.0,90214.0,0.01108475]
[1765561262213,0.01108401,90220.0,90215.0,0.23929215]
[1765561262425,0.01108401,90220.0,90216.0,0.04037241]
[1765561262426,0.2216877,90217.0,90216.0,0.04037241]
[1765561262622,0.01108524,90210.0,90205.0,0.01108585]
[1765561262847,0.01108512,90211.0,90207.0,0.01108561]
[1765561263055,0.01108512,90211.0,90206.0,0.01108573]
[1765561263056,0.00150151,90217.0,90214.0,0.01108475]
[1765561263345,0.0110845,90216.0,90212.0,0.01108499]
[1765561263493,8.552e-05,90216.0,90215.0,0.25168188]
[1765561263692,8.552e-05,90216.0,90215.0,0.26928188]
[1765561263940,8.552e-05,90216.0,90215.0,0.35230429]
[1765561265684,8.552e-05,90216.0,90215.0,0.35330429]
[1765561265885,8.552e-05,90216.0,90215.0,0.35430429]
[1765561266090,8.552e-05,90216.0,90215.0,0.35330429]
[1765561266259,8.552e-05,90216.0,90215.0,0.31293188]
[1765561266460,8.552e-05,90216.0,90215.0,0.31393188]
[1765561267587,8.552e-05,90216.0,90215.0,0.0196]
[1765561268592,8.552e-05,90216.0,90215.0,0.0186]
[1765561268780,8.552e-05,90216.0,90215.0,0.0176]
[1765561271009,8.552e-05,90216.0,90215.0,0.09024]
[1765561271208,8.552e-05,90216.0,90215.0,0.10730244]
[1765561271521,8.552e-05,90216.0,90215.0,0.32899506]
[1765561271678,8.552e-05,90216.0,90215.0,0.31193262]
[1765561272275,8.552e-05,90216.0,90215.0,0.23929262]
[1765561272475,8.552e-05,90216.0,90215.0,0.001]
[1765561272790,8.552e-05,90216.0,90215.0,0.002]
[1765561273399,0.07291552,90216.0,90215.0,0.002]
[1765561273625,0.07441703,90216.0,90215.0,0.001]
[1765561273828,0.01108487,90213.0,90209.0,0.01108536]
[1765561273971,0.22170982,90208.0,90206.0,0.0176]
[1765561274171,0.22321133,90208.0,90206.0,0.0176]
[1765561274381,0.00150151,90208.0,90206.0,0.0176]
[1765561274604,0.23278333,90213.0,90207.0,0.08372561]
[1765561274825,0.01108487,90213.0,90208.0,0.27983812]
[1765561275234,0.01108487,90213.0,90210.0,0.01108524]
[1765561275495,0.01108499,90212.0,90208.0,0.24984812]
[1765561275691,0.01108499,90212.0,90208.0,0.02814043]
[1765561275820,0.26040272,90209.0,90206.0,0.0176]
[1765561276023,0.24932228,90207.0,90206.0,0.0176]
[1765561276433,0.22172703,90201.0,90194.0,0.0176]
[1765561276655,0.26945703,90201.0,90194.0,0.0176]
[1765561276833,0.01108598,90204.0,90199.0,0.01108659]
[1765561277074,0.05937069,90262.0,90201.0,0.02727985]
[1765561277242,0.09294183,90270.0,90194.0,0.0176]
[1765561277243,0.01108549,90208.0,90205.0,0.0176]
[1765561277444,0.01108536,90209.0,90205.0,0.02868585]
[1765561277843,0.01108524,90210.0,90205.0,0.02868585]
[1765561278366,0.27421272,90209.0,90206.0,0.001]
[1765561278571,0.25009703,90201.0,90200.0,0.0002]
[1765561278895,0.25159854,90201.0,90200.0,0.0002]
[1765561279041,0.29301854,90201.0,90200.0,0.0002]
[1765561280045,0.29501854,90201.0,90200.0,0.0002]
[1765561280447,1.29501854,90201.0,90200.0,0.0002]
[1765561280675,1.29601854,90201.0,90200.0,0.0002]
[1765561280877,0.29784854,90201.0,90200.0,0.0002]
[1765561281112,0.00450151,90201.0,90200.0,0.0002]
[1765561281411,0.23280105,90206.0,90201.0,0.01108635]
[1765561281722,0.01108561,90207.0,90202.0,0.03125545]
[1765561281919,0.23280063,90206.0,90202.0,0.01108622]
[1765561282262,0.22172703,90201.0,90200.0,0.0002]
[1765561282507,0.25046703,90201.0,90200.0,0.0002]
[1765561282707,0.25246703,90201.0,90200.0,0.0002]
[1765561283710,0.002,90201.0,90200.0,0.0002]
[1765561283935,0.002,90201.0,90200.0,0.2485577]
[1765561284095,0.0110861,90203.0,90200.0,0.02682821]
[1765561284300,0.002,90201.0,90200.0,0.02682821]
[1765561284709,0.004,90201.0,90200.0,0.02682821]
[1765561284939,0.002,90201.0,90200.0,0.02682821]
[1765561285136,0.2338103,90203.0,90200.0,0.02682821]
[1765561285337,0.001,90203.0,90201.0,0.0137442]
[1765561285726,0.26458376,90211.0,90201.0,0.0137442]
[1765561285727,0.22170149,90212.0,90204.0,0.22171921]
[1765561285931,0.01108413,90219.0,90213.0,0.01108487]
[1765561286113,0.01108426,90218.0,90214.0,0.22169508]
[1765561286314,0.01108413,90219.0,90215.0,0.02662821]
[1765561286514,0.23276515,90220.0,90215.0,0.02662821]
[1765561286752,0.01108426,90218.0,90215.0,0.02662821]
[1765561286980,0.01108401,90220.0,90215.0,0.02662821]
[1765561287196,0.01108352,90224.0,90215.0,0.09674821]
[1765561287336,0.01108413,90219.0,90215.0,0.05430821]
[1765561287532,0.01108401,90220.0,90215.0,0.05430821]
[1765561287982,0.01108426,90218.0,90215.0,0.05430821]
[1765561288210,0.22168985,90217.0,90215.0,0.02768]
[1765561288365,0.01108426,90218.0,90215.0,0.02768]
[1765561288550,0.00108552,90216.0,90215.0,0.02768]
[1765561288974,0.00108552,90216.0,90215.0,0.24937262]
[1765561289175,0.00208552,90216.0,90215.0,0.29181262]
[1765561289994,0.00108552,90216.0,90215.0,0.29181262]
[1765561290432,8.552e-05,90216.0,90215.0,0.29181262]
[1765561290584,8.552e-05,90216.0,90215.0,0.29281262]
[1765561291190,8.552e-05,90216.0,90215.0,0.29181262]
[1765561291392,8.552e-05,90216.0,90215.0,0.29381262]
[1765561291720,8.552e-05,90216.0,90215.0,0.29281262]
[1765561291942,8.552e-05,90216.0,90215.0,0.29381262]
[1765561292788,8.552e-05,90216.0,90215.0,0.29581262]
[1765561293520,8.552e-05,90216.0,90215.0,0.27097262]
[1765561293983,8.552e-05,90216.0,90215.0,0.26897262]
[1765561294185,8.552e-05,90216.0,90215.0,0.26797262]
[1765561294416,8.552e-05,90216.0,90215.0,0.25037262]
[1765561294635,8.552e-05,90216.0,90215.0,0.26897262]
[1765561295433,8.552e-05,90216.0,90215.0,0.26697262]
[1765561295672,8.552e-05,90216.0,90215.0,0.26797262]
[1765561295835,8.552e-05,90216.0,90215.0,0.26897262]
[1765561296841,8.552e-05,90216.0,90215.0,0.31141262]
[1765561301426,0.01108156,90240.0,90236.0,0.01108205]
[1765561301646,0.23271801,90238.0,90236.0,0.0176]
[1765561301847,0.01266872,90240.0,90237.0,0.02924857]
[1765561302020,0.00158716,90240.0,90237.0,0.02924857]
[1765561302191,0.01266872,90240.0,90237.0,0.02924857]
[1765561302382,0.23430215,90240.0,90237.0,0.02924857]
[1765561302780,0.22163611,90238.0,90237.0,0.02924857]
[1765561303013,0.23430215,90240.0,90237.0,0.02924857]
[1765561303217,0.23430215,90240.0,90238.0,0.01112384]
[1765561303536,0.22164348,90235.0,90234.0,0.0176]
[1765561304528,0.25038348,90235.0,90234.0,0.0176]
[1765561304926,0.01108266,90231.0,90228.0,0.02868303]
[1765561306086,0.01108266,90231.0,90213.0,0.08632954]
[1765561306087,0.01108352,90224.0,90208.0,0.26414836]
[1765561306292,0.01108352,90224.0,90217.0,0.01108438]
[1765561306293,0.01108401,90220.0,90217.0,0.01108438]
[1765561306561,0.01108315,90227.0,90212.0,0.0176]
[1765561306562,0.01108291,90229.0,90226.0,0.01108327]
[1765561306742,0.01108241,90233.0,90227.0,0.01108315]
[1765561306743,0.2327312,90233.0,90227.0,0.01108315]
[1765561307005,0.01108278,90230.0,90227.0,0.01108315]
[1765561307228,0.01108278,90230.0,90226.0,0.01108327]
[1765561307600,0.22166308,90228.0,90223.0,0.0197]
[1765561307790,0.0110834,90225.0,90222.0,0.01108377]
[1765561308346,0.01108278,90230.0,90226.0,0.01108327]
[1765561308559,0.2216528,90232.0,90226.0,0.23274688]
[1765561308731,0.23272984,90234.0,90228.0,0.2327429]
[1765561308890,0.01108205,90236.0,90233.0,0.02768]
[1765561309228,0.0110818,90238.0,90235.0,0.04738]
[1765561309449,0.23271798,90238.0,90235.0,0.04738]
[1765561309732,0.0110818,90238.0,90235.0,0.04738]
[1765561310033,0.22164054,90237.0,90235.0,0.0197]
[1765561310238,0.22164103,90236.0,90235.0,0.0197]
[1765561310441,0.01108229,90234.0,90230.0,0.01108278]
[1765561310690,0.01108229,90234.0,90228.0,0.01108303]
[1765561310691,0.01108254,90232.0,90228.0,0.01108303]
[1765561310886,0.01108327,90226.0,90223.0,0.0195]
[1765561311157,0.2216703,90225.0,90223.0,0.0371]
[1765561311456,0.23274886,90226.0,90223.0,0.0176]
[1765561311657,0.22166805,90225.0,90223.0,0.0176]
[1765561312411,0.01108327,90226.0,90223.0,0.0176]
[1765561312815,0.22166991,90225.0,90223.0,0.0176]
[1765561313340,0.22266991,90225.0,90223.0,0.0176]
[1765561313548,0.01108475,90214.0,90207.0,0.01108561]
[1765561313789,0.01108536,90209.0,90202.0,0.01108622]
[1765561314034,0.02668,90216.0,90210.0,0.22170465]
[1765561314035,0.22169171,90216.0,90210.0,0.22170465]
[1765561314267,0.22171228,90207.0,90202.0,0.01108622]
[1765561314501,0.01108549,90208.0,90203.0,0.02804796]
[1765561314799,0.22171965,90204.0,90203.0,0.02804796]
[1765561315034,0.22171965,90204.0,90201.0,0.0176]
[1765561315035,0.22172457,90202.0,90201.0,0.0176]
[1765561315249,0.23280563,90204.0,90201.0,0.0176]
[1765561315250,0.01108598,90204.0,90201.0,0.01798701]
[1765561315464,0.23280772,90204.0,90201.0,0.01798701]
[1765561315684,0.2217244,90203.0,90201.0,0.01798701]
[1765561315898,0.2217244,90203.0,90202.0,0.02621013]
[1765561316074,0.23280772,90204.0,90202.0,0.02621013]
[1765561316491,0.23280772,90204.0,90202.0,0.02721013]
[1765561316694,0.23280772,90204.0,90203.0,0.001]
[1765561317040,0.23280772,90204.0,90202.0,0.02621013]
[1765561317244,0.22172457,90202.0,90201.0,0.01798701]
[1765561317456,0.22172457,90202.0,90201.0,0.00038701]
[1765561317457,0.24840457,90202.0,90201.0,0.00038701]
[1765561317770,0.28770457,90202.0,90201.0,0.00038701]
[1765561318512,0.28920608,90202.0,90201.0,0.00038701]
[1765561318961,1.57990608,90202.0,90201.0,0.00038701]
[1765561319313,1.57990608,90202.0,90201.0,0.00138701]
[1765561319570,1.58090608,90202.0,90201.0,0.00138701]
[1765561319746,1.58090608,90202.0,90201.0,0.00038701]
[1765561319956,1.57990608,90202.0,90201.0,0.00038701]
[1765561320153,1.58290608,90202.0,90201.0,0.00038701]
[1765561320364,1.6964137,90202.0,90201.0,0.00038701]
[1765561320566,1.58590608,90202.0,90201.0,0.00038701]
[1765561320821,0.58590608,90202.0,90201.0,0.00038701]
[1765561320935,1.58590608,90202.0,90201.0,0.00038701]
[1765561321368,1.59169809,90202.0,90201.0,0.00038701]
[1765561324933,1.18539809,90202.0,90201.0,0.00038701]
[1765561325182,1.19720608,90202.0,90201.0,0.00038701]
[1765561325848,1.60350608,90202.0,90201.0,0.00038701]
[1765561326049,0.92310608,90202.0,90201.0,0.00038701]
[1765561326922,1.59750608,90202.0,90201.0,0.00038701]
[1765561327383,1.05720608,90202.0,90201.0,0.00038701]
[1765561327555,1.05420608,90202.0,90201.0,0.00038701]
[1765561327783,1.05620608,90202.0,90201.0,0.00038701]
[1765561327985,1.36820608,90202.0,90201.0,0.00038701]
[1765561328122,1.61570608,90202.0,90201.0,0.00038701]
[1765561328530,1.61270608,90202.0,90201.0,0.00038701]
[1765561328925,0.50140608,90202.0,90201.0,0.00038701]
[1765561329111,0.25300151,90202.0,90201.0,0.00038701]
[1765561329315,0.54070608,90202.0,90201.0,0.02670537]
[1765561329528,0.49940608,90202.0,90201.0,0.00038701]
[1765561329952,0.50140608,90202.0,90201.0,0.00038701]
[1765561330159,0.49940608,90202.0,90201.0,0.00038701]
[1765561330357,0.49740608,90202.0,90201.0,0.00038701]
[1765561330608,0.25100151,90202.0,90201.0,0.00038701]
[1765561331273,0.2495,90202.0,90201.0,0.00038701]
[1765561331403,0.2495,90202.0,90201.0,0.02811701]
[1765561331804,0.2515,90202.0,90201.0,0.24984404]
[1765561332351,0.2515,90202.0,90201.0,0.28831404]
[1765561333005,0.2515,90202.0,90201.0,0.24984404]
[1765561333130,0.004,90202.0,90201.0,0.28831404]
[1765561334306,0.002,90202.0,90201.0,0.28831404]
[1765561334709,0.002,90202.0,90201.0,0.28931404]
[1765561334848,0.01108463,90215.0,90211.0,0.01108512]
[1765561335051,0.01108463,90215.0,90205.0,0.01108585]
[1765561335307,0.01108463,90215.0,90209.0,0.01108536]
[1765561335308,0.01108499,90212.0,90209.0,0.01108536]
[1765561335608,0.01108598,90204.0,90201.0,0.00238701]
[1765561335755,0.01108598,90204.0,90201.0,0.00138701]
[1765561335956,0.01108549,90208.0,90202.0,0.01108622]
[1765561336159,0.01108561,90207.0,90203.0,0.0110861]
[1765561336383,0.23280058,90206.0,90202.0,0.01108622]
[1765561336586,0.01108585,90205.0,90201.0,0.00038701]
[1765561336784,0.01108585,90205.0,90201.0,0.01147336]
[1765561337119,0.22172211,90203.0,90201.0,0.00038701]
[1765561337345,0.02668,90202.0,90201.0,0.00038701]
[1765561337920,0.01108585,90205.0,90201.0,0.00038701]
[1765561338119,0.01108561,90207.0,90203.0,0.02663]
[1765561338322,0.01108573,90206.0,90204.0,0.0260026]
[1765561338753,0.22171691,90206.0,90204.0,0.0260026]
[1765561338948,0.22271691,90206.0,90204.0,0.0260026]
[1765561339367,0.22171691,90206.0,90204.0,0.0260026]
[1765561339739,0.22271691,90206.0,90204.0,0.0260026]
[1765561339906,0.22271691,90206.0,90205.0,0.01436981]
[1765561340622,0.24965691,90206.0,90205.0,0.01436981]
[1765561340822,0.24965691,90206.0,90201.0,0.00038701]
[1765561340823,0.22172457,90202.0,90201.0,0.00038701]
[1765561341075,0.26738457,90202.0,90201.0,0.00038701]
[1765561341444,0.30446457,90202.0,90201.0,0.00038701]
[1765561343270,0.26738457,90202.0,90201.0,0.00038701]
[1765561343466,0.24044457,90202.0,90201.0,0.02483749]
[1765561344097,0.01108598,90204.0,90201.0,0.02483749]
[1765561344313,0.23280619,90204.0,90201.0,0.02483749]
[1765561344652,0.01108598,90204.0,90201.0,0.02483749]
[1765561344841,0.01108573,90206.0,90203.0,0.0110861]
[1765561344997,0.01108585,90205.0,90204.0,0.01592193]
[1765561345806,0.01108561,90207.0,90204.0,0.01592193]
[1765561346082,0.01108573,90206.0,90203.0,0.0110861]
[1765561346253,0.23278259,90213.0,90207.0,0.22171228]
[1765561346432,0.00824513,90212.0,90207.0,0.22171228]
[1765561346612,0.01933012,90212.0,90209.0,0.01108536]
[1765561347420,0.01933012,90212.0,90210.0,0.22170491]
[1765561347421,0.00824513,90212.0,90210.0,0.22170491]
[1765561347784,0.01108241,90233.0,90228.0,0.23274305]
[1765561347924,0.01108241,90233.0,90229.0,0.01108291]
[1765561348122,0.23273067,90234.0,90230.0,0.01108278]
[1765561348426,0.01108266,90231.0,90226.0,0.01108327]
[1765561348622,0.0110834,90225.0,90221.0,0.01108389]
[1765561348823,0.22165331,90231.0,90226.0,0.01108327]
[1765561349054,0.01465,90232.0,90227.0,0.22166313]
[1765561349249,0.0110818,90238.0,90228.0,0.01108303]
[1765561349427,1.07227208,90250.0,90245.0,0.01108094]
[1765561349428,0.02388048,90249.0,90245.0,0.01108094]
[1765561349627,0.01108082,90246.0,90241.0,0.01108143]
[1765561349831,0.01108082,90246.0,90242.0,0.01108131]
[1765561350087,0.01108094,90245.0,90241.0,0.01108143]
[1765561350299,0.01108131,90242.0,90237.0,0.02905192]
[1765561350480,0.01108131,90242.0,90238.0,0.23271746]
[1765561350618,0.01108131,90242.0,90238.0,0.0110818]
[1765561351399,0.01108156,90240.0,90234.0,0.01108229]
[1765561351596,0.01108131,90242.0,90234.0,0.01108229]
[1765561351597,0.01108143,90241.0,90238.0,0.0110818]
[1765561351819,0.23271074,90241.0,90236.0,0.22164103]
[1765561352156,0.01108082,90246.0,90239.0,0.01108168]
[1765561352499,0.01108057,90248.0,90244.0,0.01108106]
[1765561352666,0.01108057,90248.0,90243.0,0.01108119]
[1765561353290,0.01108082,90246.0,90242.0,0.01108131]
[1765561353741,0.23269969,90246.0,90242.0,0.01108131]
[1765561353948,0.23270223,90245.0,90241.0,0.01108143]
[1765561354161,0.22162629,90242.0,90235.0,0.01108217]
[1765561354334,0.22162629,90242.0,90236.0,0.00575546]
[1765561354693,0.01108168,90239.0,90236.0,0.00575546]
[1765561354895,0.01108168,90239.0,90236.0,0.01683751]
[1765561355101,0.01108156,90240.0,90236.0,0.01683751]
[1765561355856,0.23271534,90239.0,90236.0,0.00575546]
[1765561356056,0.23271534,90239.0,90235.0,0.01108217]
[1765561356296,0.22164596,90234.0,90232.0,0.01779]
[1765561356505,0.01108217,90235.0,90232.0,0.01779]
[1765561356723,0.22164594,90234.0,90232.0,0.01779]
[1765561356887,0.01108217,90235.0,90232.0,0.02887254]
[1765561357096,0.01108192,90237.0,90232.0,0.02887254]
[1765561357295,0.23272565,90235.0,90232.0,0.01779]
[1765561357530,0.22164827,90234.0,90232.0,0.01879]
[1765561357935,0.01108106,90244.0,90235.0,0.01108217]
[1765561358148,0.01108057,90248.0,90240.0,0.01108156]
[1765561358352,0.23269986,90245.0,90239.0,0.01108168]
[1765561358540,0.01108131,90242.0,90239.0,0.01108168]
[1765561358665,0.01108131,90242.0,90237.0,0.01108192]
[1765561358874,0.23269986,90245.0,90230.0,0.23925528]
[1765561358875,0.01108156,90240.0,90233.0,0.01108241]
[1765561359090,0.01108168,90239.0,90235.0,0.01108217]
[1765561359328,0.01108168,90239.0,90235.0,0.23272564]
[1765561360106,0.01108168,90239.0,90236.0,0.01108205]
[1765561360317,0.0110807,90247.0,90243.0,0.01108119]
[1765561360811,0.0110807,90247.0,90239.0,0.01108168]
[1765561361014,0.23269575,90247.0,90241.0,0.01108143]
[1765561361219,0.23269575,90247.0,90240.0,0.01892188]
[1765561361220,0.01108106,90244.0,90240.0,0.01892188]
[1765561361776,0.01108156,90240.0,90236.0,0.01108205]
[1765561361924,0.01108131,90242.0,90236.0,0.01108205]
[1765561361925,0.23270973,90242.0,90237.0,0.23272027]
[1765561362125,0.01108143,90241.0,90237.0,0.23272029]
[1765561362335,0.23270973,90242.0,90239.0,0.01108168]
[1765561363355,0.01108156,90240.0,90237.0,0.01108192]
[1765561364420,0.01108143,90241.0,90238.0,0.0110818]
[1765561364820,0.01108168,90239.0,90236.0,0.01108205]
[1765561365250,0.01108156,90240.0,90237.0,0.01108192]
[1765561365662,0.01108156,90240.0,90236.0,0.23272093]
[1765561365995,0.01108156,90240.0,90237.0,0.01108192]
[1765561366425,0.01108156,90240.0,90236.0,0.23272093]
[1765561366668,0.01108217,90235.0,90232.0,0.01779]
[1765561366913,0.01108217,90235.0,90233.0,0.04155669]
[1765561366914,0.22164594,90234.0,90233.0,0.04155669]
[1765561367119,0.23274326,90229.0,90213.0,0.0394]
[1765561367333,0.23274326,90229.0,90219.0,0.0176]
[1765561367334,0.26741313,90227.0,90219.0,0.0176]
[1765561368177,0.30449313,90227.0,90219.0,0.0176]
[1765561368597,0.26741313,90227.0,90219.0,0.0176]
[1765561368744,0.24047313,90227.0,90220.0,0.01108401]
[1765561368950,0.24047313,90227.0,90219.0,0.02868413]
[1765561369151,0.26741313,90227.0,90219.0,0.0176]
[1765561369698,0.30449313,90227.0,90219.0,0.0176]
[1765561370006,0.30449313,90227.0,90226.0,0.00111601]
[1765561370187,0.30449313,90227.0,90226.0,0.00211601]
[1765561371900,0.22166313,90227.0,90226.0,0.00211601]
[1765561372275,0.22166313,90227.0,90226.0,0.02847241]
[1765561372486,0.22166313,90227.0,90226.0,0.00211601]
[1765561374159,0.01108291,90229.0,90226.0,0.00211601]
[1765561374369,0.01108266,90231.0,90228.0,0.02562]
[1765561374642,0.01108291,90229.0,90226.0,0.00211601]
[1765561374816,0.02395,90227.0,90226.0,0.00211601]
[1765561375054,0.06148,90227.0,90226.0,0.00211601]
[1765561375430,0.06148,90227.0,90226.0,0.00011601]
[1765561376495,0.06148,90227.0,90226.0,0.00111601]
[1765561376649,0.06148,90227.0,90226.0,0.00211601]
[1765561378217,0.01108266,90231.0,90226.0,0.00211601]
[1765561378218,0.01108156,90240.0,90235.0,0.22164161]
[1765561378500,0.01108119,90243.0,90239.0,0.01108168]
[1765561378701,0.0110807,90247.0,90242.0,0.23270525]
[1765561378911,0.0110807,90247.0,90242.0,0.01108131]
[1765561379133,0.01108094,90245.0,90241.0,0.02762143]
[1765561379339,0.23270244,90244.0,90241.0,0.01654]
[1765561379566,0.23270244,90244.0,90233.0,0.22164709]
[1765561379567,0.01108205,90236.0,90232.0,0.01108254]
[1765561379735,0.01108205,90236.0,90233.0,0.01108241]
[1765561379918,0.01108106,90244.0,90237.0,0.22163857]
[1765561380125,0.01108106,90244.0,90241.0,0.01108143]
[1765561380320,0.00674362,90245.0,90241.0,0.01108143]
[1765561380528,0.002,90247.0,90244.0,0.27477244]
[1765561380732,0.002,90247.0,90246.0,0.24723647]
[1765561381168,0.002,90247.0,90246.0,0.28432647]
[1765561381941,0.01107849,90265.0,90260.0,0.0110791]
[1765561382149,0.01107836,90266.0,90262.0,0.01107885]
[1765561382366,0.01107873,90263.0,90260.0,0.01857]
[1765561382609,0.01107861,90264.0,90260.0,0.24858508]
[1765561382785,0.01107824,90267.0,90264.0,0.01107861]
[1765561382943,0.01107787,90270.0,90266.0,0.02562]
[1765561383144,0.01107787,90270.0,90266.0,0.03681437]
[1765561383145,0.011078,90269.0,90266.0,0.03681437]
[1765561383348,0.011078,90269.0,90266.0,0.02573601]
[1765561384350,0.23263851,90269.0,90266.0,0.02573601]
[1765561384789,0.23263851,90269.0,90266.0,0.00011601]
[1765561385595,0.23463851,90269.0,90266.0,0.00011601]
[1765561386395,0.013078,90269.0,90266.0,0.00011601]
[1765561386576,0.002,90269.0,90268.0,0.02562]
[1765561386977,0.002,90269.0,90268.0,0.06271]
[1765561387175,0.002,90269.0,90268.0,0.28427245]
[1765561388206,0.001,90269.0,90268.0,0.28427245]
[1765561388588,0.002,90269.0,90268.0,0.28427245]
[1765561389679,0.001,90269.0,90268.0,0.28427245]
[1765561389798,0.002,90269.0,90268.0,0.28427245]
[1765561390223,0.01107591,90286.0,90281.0,0.01107652]
[1765561390432,0.01107591,90286.0,90285.0,0.04325]
[1765561390625,0.01107591,90286.0,90281.0,0.23260473]
[1765561390626,0.01107603,90285.0,90282.0,0.0110764]
[1765561390801,0.01107591,90286.0,90282.0,0.0110764]
[1765561390967,0.01107591,90286.0,90283.0,0.01107628]
[1765561391168,0.01107603,90285.0,90282.0,0.0110764]
[1765561391420,0.01107591,90286.0,90283.0,0.01107628]
[1765561391667,0.01107591,90286.0,90281.0,0.23260706]
[1765561391668,0.23259767,90285.0,90281.0,0.01107652]
[1765561391918,0.0110764,90282.0,90278.0,0.02867689]
[1765561392124,0.01107615,90284.0,90279.0,0.01107677]
[1765561392320,0.01107652,90281.0,90278.0,0.0176]
[1765561392906,0.0110764,90282.0,90280.0,0.02562]
[1765561393120,0.0110764,90282.0,90281.0,0.02562]
[1765561395672,0.22153546,90279.0,90278.0,0.0176]
[1765561395876,0.011078,90269.0,90260.0,0.0296491]
[1765561396083,0.22156491,90267.0,90260.0,0.03617]
[1765561396283,0.22156491,90267.0,90261.0,0.01107898]
[1765561396525,0.22156491,90267.0,90265.0,0.01713]
[1765561396708,0.00150151,90269.0,90266.0,0.24730125]
[1765561396954,0.01107652,90281.0,90277.0,0.01107701]
[1765561397129,0.01107677,90279.0,90272.0,0.23756651]
[1765561397329,0.01107714,90276.0,90273.0,0.0110775]
[1765561397598,0.23261722,90278.0,90274.0,0.01107738]
[1765561397823,0.01107763,90272.0,90269.0,0.011078]
[1765561398026,0.01107787,90270.0,90267.0,0.01107824]
[1765561398194,0.22156206,90269.0,90266.0,0.00011601]
[1765561398372,0.23264006,90269.0,90267.0,0.03709]
[1765561398553,0.23264006,90269.0,90266.0,0.00011601]
[1765561398757,0.22156491,90267.0,90266.0,0.00011601]
[1765561399547,0.28293491,90267.0,90266.0,0.00011601]
[1765561400733,0.24688491,90267.0,90266.0,0.00111601]
[1765561400884,0.24688491,90267.0,90266.0,0.00011601]
[1765561401290,0.24788491,90267.0,90266.0,0.00011601]
[1765561401485,0.24788491,90267.0,90266.0,0.00111601]
[1765561401902,0.24788491,90267.0,90266.0,0.00011601]
[1765561402285,0.24988491,90267.0,90266.0,0.00011601]
[1765561402598,0.28423491,90267.0,90266.0,0.00011601]
[1765561403518,1.57493491,90267.0,90266.0,0.00011601]
[1765561405197,1.5987898,90267.0,90266.0,0.00011601]
[1765561405632,1.05913491,90267.0,90266.0,0.00011601]
[1765561406253,1.08299914,90267.0,90266.0,0.00011601]
[1765561406719,1.59879914,90267.0,90266.0,0.00011601]
[1765561407504,0.82169914,90267.0,90266.0,0.00011601]
[1765561407645,0.59879914,90267.0,90266.0,0.00011601]
[1765561407844,0.57493491,90267.0,90266.0,0.00011601]
[1765561408476,0.82453491,90267.0,90266.0,0.00011601]